bitfinex-derivatives/quotes_BNBF0:USTF0_20250904
["timestamp","ask_amount","ask_price","bid_price","bid_amount"]
[1756966293806,0.79304811,847.96,847.38,0.78783181]
[1756966294110,0.79304811,847.92,847.34,0.78783181]
[1756966294310,0.79304811,847.93,847.34,0.78783181]
[1756966295210,0.79304811,847.93,847.33,0.78783181]
[1756966297210,0.79304811,847.94,847.33,0.78783181]
[1756966298213,0.79304811,847.94,847.32,0.78783181]
[1756966298811,0.79304811,847.95,847.33,0.78783181]
[1756966301215,0.79304811,847.95,847.32,0.78783181]
[1756966301421,0.79304811,847.95,847.33,0.78783181]
[1756966303018,0.79304811,847.94,847.34,0.78783181]
[1756966303318,0.79304811,847.94,847.33,0.78783181]
[1756966303821,0.79304811,847.94,847.0,1.5915666]
[1756966303822,0.79304811,847.9,847.36,0.78783181]
[1756966305121,0.79304811,847.91,847.36,0.78783181]
[1756966305317,0.79304811,847.9,847.36,0.78783181]
[1756966306818,0.79304811,847.89,847.37,0.78783181]
[1756966307219,0.79304811,847.89,847.36,0.78783181]
[1756966308319,0.79304811,847.9,847.36,0.78783181]
[1756966311025,0.79304811,847.97,847.31,0.78783181]
[1756966315027,0.79304811,847.98,847.31,0.78783181]
[1756966317431,0.79304811,848.0,847.3,0.78783181]
[1756966319232,0.79304811,847.95,847.33,0.78783181]
[1756966320733,0.79304811,847.96,847.32,0.78783181]
[1756966321130,0.79304811,847.95,847.32,0.78783181]
[1756966321532,0.79304811,847.96,847.31,0.78783181]
[1756966322137,0.79304811,847.95,847.32,0.78783181]
[1756966322338,0.79304811,847.96,847.31,0.78783181]
[1756966327043,0.79304811,847.94,847.33,0.78783181]
[1756966327851,0.20515179,848.25,846.27,0.20522377]
[1756966327852,0.79304811,847.95,847.32,0.78783181]
[1756966328945,0.79304811,847.95,847.31,0.78783181]
[1756966330441,0.79304811,847.95,847.32,0.78783181]
[1756966330642,0.79304811,847.94,847.32,0.78783181]
[1756966331345,0.79304811,847.93,847.32,0.78783181]
[1756966332047,0.79304811,847.93,847.16,1.0612515]
[1756966332048,0.79304811,847.93,847.33,0.78783181]
[1756966332548,0.79304811,847.92,847.33,0.78783181]
[1756966333147,0.79304811,847.93,847.33,0.78783181]
[1756966333846,0.79304811,847.92,847.33,0.78783181]
[1756966334445,0.79304811,847.95,847.31,0.78783181]
[1756966335250,0.79304811,847.95,847.32,0.78783181]
[1756966335449,0.79304811,847.96,847.32,0.78783181]
[1756966336148,0.79304811,847.98,847.34,0.78783181]
[1756966337051,0.20524495,847.88,847.34,0.78783181]
[1756966337350,0.20524495,847.88,847.35,0.78783181]
[1756966338346,0.20524495,847.88,847.36,0.78783181]
[1756966340352,0.20524495,847.88,847.37,0.78783181]
[1756966342251,0.20524495,847.88,847.38,0.78783181]
[1756966342951,0.20524495,847.88,847.37,0.78783181]
[1756966343152,0.20524495,847.88,847.38,0.78783181]
[1756966344248,0.20524495,847.88,847.4,0.78783181]
[1756966344750,0.20524495,847.88,847.41,0.78783181]
[1756966345649,0.20524495,847.88,847.42,0.78783181]
[1756966345851,0.20524495,847.88,847.4,0.78783181]
[1756966351154,0.20524495,847.88,847.41,0.78783181]
[1756966354053,0.20524495,847.88,847.42,0.78783181]
[1756966354254,0.20524495,847.88,845.44,3.6903325]
[1756966354255,0.20524495,847.88,847.41,0.78783181]
[1756966355161,0.20524495,847.88,847.4,0.78783181]
[1756966356258,0.79304811,848.23,847.4,0.78783181]
[1756966356558,0.2052153,847.98,847.44,0.78783181]
[1756966358157,0.2052153,847.98,847.43,0.78783181]
[1756966358855,0.2052153,847.98,847.5,0.78783181]
[1756966359258,0.2052153,847.98,847.49,0.78783181]
[1756966361159,0.2052153,847.98,847.48,0.78783181]
[1756966362456,0.2052153,847.98,847.47,0.78783181]
[1756966362756,0.2052153,847.98,847.53,0.78783181]
[1756966364158,0.2052153,847.98,847.52,0.78783181]
[1756966365963,0.2052153,847.98,847.51,0.78783181]
[1756966369062,0.2052153,847.98,847.5,0.78783181]
[1756966369265,0.2052153,847.98,847.51,0.78783181]
[1756966369558,0.2052153,847.98,847.5,0.78783181]
[1756966370164,0.2052153,847.98,847.48,0.78783181]
[1756966371062,0.2052153,847.98,847.47,0.78783181]
[1756966371262,0.79304811,848.32,847.43,0.78783181]
[1756966371461,0.79304811,848.45,847.54,0.78783181]
[1756966372163,0.20517779,848.23,847.53,0.78783181]
[1756966372864,0.20517779,848.23,847.54,0.78783181]
[1756966373066,0.20517779,848.23,847.53,0.78783181]
[1756966373364,0.20517779,848.23,847.52,0.78783181]
[1756966374468,0.20517779,848.23,847.51,0.78783181]
[1756966376166,0.20517779,848.23,847.5,0.78783181]
[1756966377268,0.20517779,848.23,847.53,0.78783181]
[1756966377666,0.20517779,848.23,847.55,0.78783181]
[1756966378872,0.20517779,848.23,847.53,0.78783181]
[1756966381483,0.20517779,848.23,847.52,0.78783181]
[1756966382984,0.20517779,848.23,847.53,0.78783181]
[1756966383384,0.20517779,848.23,847.52,0.78783181]
[1756966386285,0.20517779,848.23,847.51,0.78783181]
[1756966386480,0.20517779,848.23,847.52,0.78783181]
[1756966387687,0.20517779,848.23,847.55,0.78783181]
[1756966388988,0.20517779,848.23,847.56,0.78783181]
[1756966389490,0.20517779,848.23,847.41,1.0612515]
[1756966389690,0.20517779,848.23,847.54,0.78724665]
[1756966394695,0.20517779,848.23,847.4,0.78724665]
[1756966394894,0.20517779,848.23,847.51,0.78724665]
[1756966395395,0.20517779,848.23,847.47,0.78724665]
[1756966396196,0.20517779,848.23,847.46,0.78724665]
[1756966397993,0.20517779,848.23,847.45,0.78724665]
[1756966398197,0.20517779,848.23,847.44,0.78724665]
[1756966399097,0.20517779,848.23,847.45,0.78724665]
[1756966401197,0.20517779,848.23,847.46,0.78724665]
[1756966403497,0.20517779,848.23,847.47,0.78724665]
[1756966403697,0.20517779,848.23,847.48,0.78724665]
[1756966404700,0.20517779,848.23,847.49,0.78724665]
[1756966405197,0.20517779,848.23,847.5,0.78724665]
[1756966406104,0.20517779,848.23,847.51,0.78724665]
[1756966406297,0.20517779,848.23,847.52,0.78724665]
[1756966407700,0.20517779,848.23,847.53,0.78724665]
[1756966407901,0.20517779,848.23,847.54,0.78724665]
[1756966408102,0.20517779,848.23,847.55,0.78724665]
[1756966408297,0.20517779,848.23,847.56,0.78724665]
[1756966409304,0.20517779,848.23,847.57,0.78724665]
[1756966410103,0.20517779,848.23,847.59,0.78724665]
[1756966410303,0.20517779,848.23,847.6,0.78724665]
[1756966411403,0.20517779,848.23,847.61,0.78724665]
[1756966412216,0.20517779,848.23,847.62,0.78724665]
[1756966413212,0.20517779,848.23,847.63,0.78724665]
[1756966413614,0.20517779,848.23,847.66,0.78724665]
[1756966414409,0.20517779,848.23,847.67,0.78724665]
[1756966415311,0.20517779,848.23,847.68,0.78724665]
[1756966416407,0.20517779,848.23,847.69,0.78724665]
[1756966417410,0.20517779,848.23,847.7,0.78724665]
[1756966419012,0.20517779,848.23,847.71,0.78724665]
[1756966420313,0.20517779,848.23,847.72,0.78724665]
[1756966421211,0.20517779,848.23,847.74,0.78724665]
[1756966422712,0.20517779,848.23,847.75,0.78724665]
[1756966424415,0.20517779,848.23,847.76,0.78724665]
[1756966426318,0.20517779,848.23,847.77,0.78724665]
[1756966427322,0.20517779,848.23,847.78,0.78724665]
[1756966428419,0.20517779,848.23,847.79,0.78724665]
[1756966429024,0.20517779,848.23,847.78,0.78724665]
[1756966429322,0.20517779,848.23,847.79,0.78724665]
[1756966430221,0.20517779,848.23,847.8,0.78724665]
[1756966431224,0.20517779,848.23,847.81,0.78724665]
[1756966432821,0.20517779,848.23,847.82,0.78724665]
[1756966433222,0.20517779,848.23,847.81,0.78724665]
[1756966433524,0.20517779,848.23,847.82,0.78724665]
[1756966434121,0.20517779,848.23,847.81,0.78724665]
[1756966437426,0.20517779,848.23,847.82,0.78724665]
[1756966437628,0.20517779,848.23,847.81,0.78724665]
[1756966438227,0.20517779,848.23,847.82,0.78724665]
[1756966443137,0.20517779,848.23,847.83,0.78724665]
[1756966443534,0.20517779,848.23,847.82,0.78724665]
[1756966448735,0.20517779,848.23,847.65,0.78724665]
[1756966448937,0.20517779,848.23,847.69,0.78724665]
[1756966452234,0.20517779,848.23,847.7,0.78724665]
[1756966452437,0.20517779,848.23,847.69,0.78724665]
[1756966453433,0.20517779,848.23,847.7,0.78724665]
[1756966457540,0.20517779,848.23,847.73,0.78724665]
[1756966458841,0.20517779,848.23,847.82,0.78724665]
[1756966459143,0.20517779,848.23,847.84,0.78724665]
[1756966459744,0.20517779,848.23,846.84,2.6359517]
[1756966459745,0.20517779,848.23,847.87,0.78724665]
[1756966459941,0.20517779,848.23,847.83,0.78724665]
[1756966460141,0.20517779,848.23,847.84,0.78724665]
[1756966460344,0.20517779,848.23,847.85,0.78724665]
[1756966461646,0.20517779,848.23,847.88,0.78724665]
[1756966462645,0.20512639,848.33,847.87,0.78724665]
[1756966463348,0.20512639,848.33,847.86,0.78724665]
[1756966463548,0.20512639,848.33,847.89,0.78724665]
[1756966464145,0.20512639,848.33,847.9,0.78724665]
[1756966465258,0.20512639,848.33,847.91,0.78724665]
[1756966465449,0.20512639,848.33,846.73,2.6359517]
[1756966465450,0.20512639,848.33,847.9,0.78724665]
[1756966465643,0.20512639,848.33,847.97,0.78724665]
[1756966466445,0.20512639,848.33,846.97,2.6359517]
[1756966466446,0.20512639,848.33,847.96,0.78724665]
[1756966467447,0.20512639,848.33,847.95,0.78724665]
[1756966467852,0.20512639,848.33,847.96,0.78724665]
[1756966468252,0.20512639,848.33,847.95,0.78724665]
[1756966468552,0.20512639,848.33,847.93,0.78724665]
[1756966469053,0.20512639,848.33,847.84,0.78724665]
[1756966469250,0.20512639,848.33,847.85,0.78724665]
[1756966469447,0.20512639,848.33,847.32,1.5915666]
[1756966469448,0.20512639,848.33,847.84,0.78724665]
[1756966470452,0.20512639,848.33,847.83,0.78724665]
[1756966470856,0.20512639,848.33,847.84,0.78724665]
[1756966471349,0.20512639,848.33,847.83,0.78724665]
[1756966473456,0.20512639,848.33,847.82,0.78724665]
[1756966475453,0.20512639,848.33,847.81,0.78724665]
[1756966476658,0.20512639,848.33,847.8,0.78724665]
[1756966477059,0.20512639,848.33,847.69,0.78724665]
[1756966478457,0.20512639,848.33,847.67,0.78724665]
[1756966478960,0.20512639,848.33,847.68,0.78724665]
[1756966479472,0.20512639,848.33,847.69,0.78724665]
[1756966479862,0.20512639,848.33,846.63,0.20516146]
[1756966479863,0.20512639,848.33,847.73,0.78724665]
[1756966482464,0.20512639,848.33,847.74,0.78724665]
[1756966488369,0.20512639,848.33,847.59,1.0612515]
[1756966488370,0.20512639,848.33,847.75,0.78724665]
[1756966492667,0.20512639,848.33,847.76,0.78724665]
[1756966492904,0.20512639,848.33,847.74,0.78724665]
[1756966495675,0.20512639,848.33,847.73,0.78724665]
[1756966496376,0.20512639,848.33,847.74,0.78724665]
[1756966499277,0.20512639,848.33,847.73,0.78724665]
[1756966499478,0.20512639,848.33,847.74,0.78724665]
[1756966500878,0.20512639,848.33,847.72,0.78724665]
[1756966501278,0.20512639,848.33,847.71,0.78724665]
[1756966501685,0.20512639,848.33,847.72,0.78724665]
[1756966502085,0.79190789,848.45,847.72,0.78724665]
[1756966502284,0.79190789,848.44,847.72,0.78724665]
[1756966502585,0.2051536,848.27,847.72,0.78724665]
[1756966504881,0.2051536,848.27,847.73,0.78724665]
[1756966505584,0.2051536,848.27,847.72,0.78724665]
[1756966506284,0.2051536,848.27,847.73,0.78724665]
[1756966507387,0.2051536,848.27,847.72,0.78724665]
[1756966509291,0.2051536,848.27,847.73,0.78724665]
[1756966509589,0.2051536,848.27,847.72,0.78724665]
[1756966510190,0.2051536,848.27,847.73,0.78724665]
[1756966510691,0.2051536,848.27,847.74,0.78724665]
[1756966511589,0.2051536,848.27,847.75,0.78724665]
[1756966512787,0.2051536,848.27,846.87,0.2051536]
[1756966512788,0.2051536,848.27,847.74,0.78724665]
[1756966513794,0.2051536,848.27,847.75,0.78724665]
[1756966515290,0.2051536,848.27,847.74,0.78724665]
[1756966515793,0.2051536,848.27,847.7,0.78724665]
[1756966517192,0.2051536,848.27,847.71,0.78724665]
[1756966519397,0.2051536,848.27,847.7,0.78724665]
[1756966523401,0.2051536,848.27,847.69,0.78724665]
[1756966525703,0.2051536,848.27,847.72,0.78724665]
[1756966526805,0.2051536,848.27,847.71,0.78724665]
[1756966528305,0.2051536,848.27,847.66,0.78724665]
[1756966528503,0.2051536,848.27,847.58,0.78724665]
[1756966529302,0.2051536,848.27,847.57,0.78724665]
[1756966529505,0.2051536,848.27,847.58,0.78724665]
[1756966530105,0.2051536,848.27,847.59,0.78724665]
[1756966531104,0.2051536,848.27,847.6,0.78724665]
[1756966531908,0.2051536,848.27,847.59,0.78724665]
[1756966532510,0.2051536,848.27,847.6,0.78724665]
[1756966533309,0.2051536,848.27,847.59,0.78724665]
[1756966533505,0.2051536,848.27,847.6,0.78724665]
[1756966534710,0.2051536,848.27,847.61,0.78724665]
[1756966535006,0.2051536,848.27,847.59,0.78724665]
[1756966535410,0.2051536,848.27,847.41,1.0612515]
[1756966535411,0.2051536,848.27,847.6,0.78724665]
[1756966536112,0.99706149,848.27,847.57,0.78724665]
[1756966536313,0.79190789,848.24,847.57,0.78724665]
[1756966536511,0.2051536,848.27,846.87,0.2051536]
[1756966536512,0.79190789,848.21,847.59,0.78724665]
[1756966537210,0.79190789,848.2,847.59,0.78724665]
[1756966537414,0.79190789,848.2,847.58,0.78724665]
[1756966538414,0.79190789,848.21,847.58,0.78724665]
[1756966539118,0.2051536,848.27,847.58,0.78724665]
[1756966539119,0.79190789,848.2,847.58,0.78724665]
[1756966539311,0.79190789,848.2,847.42,1.0612515]
[1756966539312,0.79190789,848.21,847.57,0.78724665]
[1756966540116,0.79190789,848.2,847.57,0.78724665]
[1756966540312,0.79190789,848.21,847.57,0.78724665]
[1756966541412,0.79190789,848.21,847.56,0.78724665]
[1756966541713,0.79190789,848.22,847.56,0.78724665]
[1756966543513,0.79190789,848.23,847.55,0.78724665]
[1756966543814,0.79190789,848.22,847.55,0.78724665]
[1756966544413,0.79190789,848.23,847.55,0.78724665]
[1756966544617,0.79190789,848.22,847.55,0.78724665]
[1756966545418,0.79190789,848.23,847.55,0.78724665]
[1756966545816,0.79190789,848.22,847.55,0.78724665]
[1756966546014,0.79190789,848.2,847.56,0.78724665]
[1756966546718,0.79190789,848.22,847.55,0.78724665]
[1756966548315,0.79190789,848.22,847.4,1.0612515]
[1756966548316,0.79190789,848.23,847.54,0.78724665]
[1756966549119,0.79190789,848.23,847.47,0.78724665]
[1756966549328,0.79190789,848.22,847.45,0.78724665]
[1756966550519,0.79190789,848.23,847.45,0.78724665]
[1756966551420,0.79190789,848.23,847.44,0.78724665]
[1756966554024,0.79190789,848.24,847.44,0.78724665]
[1756966554527,0.79190789,848.24,847.43,0.78724665]
[1756966555724,0.79190789,848.25,847.43,0.78724665]
[1756966555928,0.2051536,848.27,846.87,0.2051536]
[1756966555929,0.79190789,848.2,847.38,0.78724665]
[1756966557125,0.79190789,848.2,847.37,0.78724665]
[1756966557326,0.79190789,848.21,847.37,0.78724665]
[1756966558928,0.79190789,848.17,847.39,0.78724665]
[1756966559430,0.79190789,848.18,847.39,0.78724665]
[1756966560131,0.79190789,848.17,847.39,0.78724665]
[1756966561033,0.79190789,848.17,847.4,0.78724665]
[1756966561435,0.79190789,848.17,847.39,0.78724665]
[1756966561732,0.79190789,848.17,847.38,0.78724665]
[1756966563234,0.79190789,848.19,847.37,0.78724665]
[1756966563938,0.79190789,848.18,847.37,0.78724665]
[1756966564337,0.79190789,848.19,847.37,0.78724665]
[1756966564637,0.79190789,848.18,847.37,0.78724665]
[1756966565339,0.79190789,848.19,847.37,0.78724665]
[1756966565840,0.79190789,848.17,847.38,0.78724665]
[1756966567035,0.79190789,848.17,847.39,0.78724665]
[1756966567440,0.79190789,848.17,847.38,0.78724665]
[1756966568537,0.2051536,848.27,847.24,1.0612515]
[1756966568742,0.79293679,848.17,847.38,0.79070655]
[1756966568941,0.79293679,848.16,847.37,0.79070655]
[1756966569739,0.79293679,848.15,847.37,0.79070655]
[1756966569937,0.79293679,848.15,847.38,0.79070655]
[1756966570141,0.79293679,848.15,847.37,0.79070655]
[1756966571038,0.79293679,848.15,847.23,1.0612515]
[1756966571039,0.79293679,848.15,847.38,0.79070655]
[1756966571241,0.79293679,848.15,847.37,0.79070655]
[1756966571439,0.79293679,848.15,847.38,0.79070655]
[1756966573150,0.79293679,848.14,847.38,0.79070655]
[1756966573447,0.79293679,848.14,847.39,0.79070655]
[1756966573641,0.79293679,848.14,847.38,0.79070655]
[1756966574545,0.79293679,848.15,847.38,0.79070655]
[1756966575146,0.2051536,848.27,847.37,0.79070655]
[1756966576346,0.2051536,848.27,847.38,0.79070655]
[1756966576742,0.79293679,848.45,847.38,0.79070655]
[1756966578447,0.79293679,848.38,847.43,0.79070655]
[1756966578946,0.79293679,848.37,847.43,0.79070655]
[1756966579247,0.79293679,848.32,847.46,0.79070655]
[1756966580243,0.79293679,848.31,847.47,0.79070655]
[1756966580547,0.79293679,848.32,847.47,0.79070655]
[1756966580948,0.2051911,848.11,847.47,0.79070655]
[1756966581248,0.2051911,848.11,847.48,0.79070655]
[1756966581446,0.2051911,848.11,847.47,0.79070655]
[1756966582244,0.2051911,848.11,847.48,0.79070655]
[1756966583047,0.2051911,848.11,847.47,0.79070655]
[1756966584350,0.2051911,848.11,847.48,0.79070655]
[1756966585051,0.2051911,848.11,847.51,0.79070655]
[1756966585254,0.2051911,848.11,847.52,0.79070655]
[1756966586259,0.2051911,848.11,847.53,0.79070655]
[1756966587254,0.2051911,848.11,847.54,0.79070655]
[1756966588358,0.2051911,848.11,847.55,0.79070655]
[1756966588854,0.2051911,848.11,847.54,0.79070655]
[1756966589054,0.2051911,848.11,847.55,0.79070655]
[1756966590359,0.2051911,848.11,847.54,0.79070655]
[1756966590863,0.2051911,848.11,847.51,0.79070655]
[1756966591159,0.2051911,848.11,847.47,0.79070655]
[1756966592258,0.2051911,848.11,847.27,1.0612515]
[1756966592259,0.2051911,848.11,847.48,0.79070655]
[1756966593483,0.2051911,848.11,847.29,1.0612515]
[1756966593484,0.2051911,848.11,847.49,0.79070655]
[1756966593663,0.2051911,848.11,847.48,0.79070655]
[1756966594064,0.2051911,848.11,847.47,0.79070655]
[1756966596564,0.2051911,848.11,847.48,0.79070655]
[1756966598166,0.2051911,848.11,847.45,0.79070655]
[1756966598360,0.2051911,848.11,847.46,0.79070655]
[1756966600865,0.2051911,848.11,847.48,0.79070655]
[1756966602262,0.2051911,848.11,847.49,0.79070655]
[1756966602463,0.2051911,848.11,847.48,0.79070655]
[1756966603163,0.2051911,848.11,847.49,0.79070655]
[1756966604165,0.2051911,848.11,847.51,0.79070655]
[1756966605170,0.2051911,848.11,846.97,0.2051911]
[1756966605171,0.79293679,848.1,847.52,0.79070655]
[1756966606470,0.79293679,848.1,847.53,0.79070655]
[1756966607268,0.79293679,848.1,847.52,0.79070655]
[1756966607969,0.79293679,848.1,847.53,0.79070655]
[1756966608772,0.79293679,848.1,847.52,0.79070655]
[1756966608977,0.2051911,848.11,847.4,0.79070655]
[1756966618981,0.2051911,848.11,847.49,0.79070655]
[1756966622192,0.2051911,848.11,847.5,0.79070655]
[1756966624991,0.2051911,848.11,847.54,0.79070655]
[1756966625390,0.2051911,848.11,847.55,0.79070655]
[1756966625887,0.2051911,848.11,847.61,0.79070655]
[1756966629096,0.2051911,848.11,847.6,0.79070655]
[1756966630495,0.2051911,848.11,847.61,0.79070655]
[1756966630696,0.2051911,848.11,847.6,0.79070655]
[1756966631495,0.2051911,848.11,847.61,0.79070655]
[1756966632091,0.2051911,848.11,847.6,0.79070655]
[1756966632595,0.2051911,848.11,847.61,0.79070655]
[1756966634197,0.2051911,848.11,847.62,0.79070655]
[1756966634400,0.2051911,848.11,847.63,0.79070655]
[1756966649118,0.2051911,848.11,847.62,0.79070655]
[1756966650217,0.2051911,848.11,847.46,0.79070655]
[1756966650415,0.2051911,848.11,847.45,0.79070655]
[1756966651621,0.2051911,848.11,847.43,0.79070655]
[1756966651816,0.2051911,848.11,847.42,0.79070655]
[1756966656123,0.2051911,848.11,847.41,0.79070655]
[1756966656725,0.99812789,848.11,847.52,0.79070655]
[1756966656920,0.79293679,848.06,847.47,0.79070655]
[1756966657525,0.79293679,848.07,847.47,0.79070655]
[1756966657825,0.79293679,848.08,847.46,0.79070655]
[1756966658323,0.79293679,848.07,847.44,0.79070655]
[1756966658526,0.79293679,848.06,847.36,0.79070655]
[1756966658724,0.79293679,848.05,847.37,0.79070655]
[1756966659124,0.79293679,848.06,847.37,0.79070655]
[1756966659328,0.79293679,848.07,847.37,0.79070655]
[1756966661125,0.79293679,848.09,847.35,0.79070655]
[1756966662525,0.79293679,848.1,847.35,0.79070655]
[1756966663329,0.79293679,848.1,847.34,0.79070655]
[1756966666434,0.79293679,848.1,847.33,0.79070655]
[1756966667231,0.99812789,848.11,847.33,0.79070655]
[1756966667730,0.79293679,848.09,847.34,0.79070655]
[1756966668430,0.79293679,848.05,847.34,0.79070655]
[1756966669530,0.79293679,848.04,847.35,0.79070655]
[1756966670230,0.79293679,848.04,847.34,0.79070655]
[1756966670430,0.79293679,848.05,847.34,0.79070655]
[1756966670932,0.79293679,848.01,847.37,0.79070655]
[1756966671133,0.79293679,848.0,847.37,0.79070655]
[1756966671332,0.79293679,848.02,847.36,0.79070655]
[1756966672430,0.79293679,848.03,847.35,0.79070655]
[1756966673429,0.79293679,848.04,847.34,0.79070655]
[1756966673729,0.79293679,848.05,847.33,0.79070655]
[1756966674429,0.79293679,848.06,847.33,0.79070655]
[1756966678835,0.79293679,848.07,847.34,0.79070655]
[1756966679035,0.79293679,848.08,847.34,0.79070655]
[1756966681234,0.79293679,848.07,847.34,0.79070655]
[1756966682239,0.79293679,848.07,847.35,0.79070655]
[1756966682639,0.79293679,848.07,847.04,1.5915666]
[1756966682640,0.2051911,848.11,847.27,0.79070655]
[1756966692550,0.79293679,848.06,847.34,0.79070655]
[1756966696250,0.79293679,848.05,847.34,0.79070655]
[1756966697349,0.79293679,848.05,847.35,0.79070655]
[1756966697553,0.79293679,848.06,847.34,0.79070655]
[1756966698353,0.79293679,848.05,847.34,0.79070655]
[1756966700351,0.2051911,848.11,846.97,0.2051911]
[1756966700352,0.79293679,848.06,847.33,0.79070655]
[1756966700856,0.79293679,848.03,847.36,0.79070655]
[1756966701355,0.79293679,848.02,847.36,0.79070655]
[1756966702455,0.2051911,848.11,847.36,0.79070655]
[1756966702456,0.79293679,848.01,847.36,0.79070655]
[1756966704051,0.79293679,848.0,847.37,0.79070655]
[1756966704257,0.79293679,848.01,847.36,0.79070655]
[1756966706357,0.79293679,848.01,847.37,0.79070655]
[1756966706757,0.79293679,848.01,847.36,0.79070655]
[1756966707458,0.79293679,848.01,847.37,0.79070655]
[1756966708259,0.79293679,848.0,847.37,0.79070655]
[1756966708556,0.79293679,848.0,847.38,0.79070655]
[1756966709261,0.79293679,847.99,847.39,0.79070655]
[1756966709555,0.79293679,848.0,847.39,0.79070655]
[1756966709954,0.79293679,847.99,847.39,0.79070655]
[1756966710360,0.79293679,847.98,847.4,0.79070655]
[1756966711361,0.79293679,847.97,847.41,0.79070655]
[1756966713265,0.79293679,848.05,847.28,0.79070655]
[1756966713462,0.2051911,848.11,846.81,1.5915666]
[1756966713463,0.79293679,848.01,847.24,0.79070655]
[1756966713657,0.79293679,848.0,847.23,0.79070655]
[1756966715258,0.79293679,848.0,847.22,0.79070655]
[1756966715578,0.79293679,848.0,846.99,1.0612515]
[1756966715579,0.79293679,848.0,847.23,0.79070655]
[1756966719266,0.79293679,848.01,847.23,0.79070655]
[1756966720667,0.79293679,847.93,847.28,0.79070655]
[1756966722766,0.2051911,848.11,846.81,0.20525948]
[1756966722767,0.79293679,847.91,847.29,0.79070655]
[1756966722965,0.79293679,847.88,847.31,0.79070655]
[1756966723167,0.79293679,847.87,847.32,0.79070655]
[1756966725470,0.79293679,847.89,847.31,0.79070655]
[1756966725672,0.79293679,847.88,847.31,0.79070655]
[1756966726266,1.0584186,848.04,847.31,0.79070655]
[1756966726267,0.79293679,847.89,847.31,0.79070655]
[1756966726974,0.79293679,847.88,847.31,0.79070655]
[1756966727171,0.79293679,847.88,847.3,0.79070655]
[1756966728575,1.0584186,848.03,847.15,1.0612515]
[1756966728776,0.79517102,847.88,847.29,0.79231453]
[1756966731777,0.79517102,847.88,847.27,0.79231453]
[1756966732078,0.79517102,847.87,847.27,0.79231453]
[1756966732979,0.79517102,847.88,847.26,0.79231453]
[1756966733279,0.79517102,847.87,847.24,0.79231453]
[1756966736878,0.79517102,847.88,847.24,0.79231453]
[1756966737188,0.79517102,847.88,847.23,0.79231453]
[1756966738585,0.79517102,847.87,847.23,0.79231453]
[1756966739081,0.79517102,847.88,847.24,0.79231453]
[1756966741480,0.79517102,847.86,847.24,0.79231453]
[1756966742383,0.79517102,847.87,847.24,0.79231453]
[1756966742583,0.79517102,847.87,847.23,0.79231453]
[1756966742880,0.79517102,847.86,847.24,0.79231453]
[1756966743381,0.79517102,847.85,847.23,0.79231453]
[1756966745382,0.79517102,847.84,847.24,0.79231453]
[1756966750892,0.79517102,847.88,847.22,0.79231453]
[1756966751489,0.79517102,847.91,847.19,0.79231453]
[1756966751687,0.79517102,847.88,847.16,0.79231453]
[1756966753589,0.79517102,847.9,847.15,0.79231453]
[1756966756596,0.79517102,847.89,847.14,0.79231453]
[1756966759295,0.79517102,847.89,847.13,0.79231453]
[1756966760398,0.79517102,847.91,847.12,0.79231453]
[1756966760598,0.2051911,848.11,846.7,1.5915666]
[1756966760599,0.79517102,847.88,847.1,0.79231453]
[1756966761000,0.79517102,847.89,847.09,0.79231453]
[1756966762209,0.79517102,847.89,847.1,0.79231453]
[1756966762406,0.2051911,848.11,846.66,0.20529823]
[1756966762407,0.79517102,847.88,847.09,0.79231453]
[1756966763610,0.79517102,847.87,847.09,0.79231453]
[1756966765414,0.79517102,847.88,847.09,0.79231453]
[1756966766214,0.79517102,847.9,847.08,0.79231453]
[1756966767010,0.79517102,847.89,847.08,0.79231453]
[1756966768111,0.79517102,847.89,847.09,0.79231453]
[1756966768415,0.79517102,847.89,847.08,0.79231453]
[1756966768914,0.79517102,847.89,847.09,0.79231453]
[1756966769212,0.79517102,847.88,847.09,0.79231453]
[1756966769514,0.79517102,847.87,847.09,0.79231453]
[1756966770210,0.79517102,847.85,847.11,0.79231453]
[1756966770914,0.79517102,847.83,847.12,0.79231453]
[1756966772215,0.79517102,847.82,847.13,0.79231453]
[1756966773412,0.79517102,847.87,847.1,0.79231453]
[1756966774513,0.79517102,847.86,847.1,0.79231453]
[1756966774712,0.79517102,847.87,847.1,0.79231453]
[1756966775313,0.79517102,847.86,847.11,0.79231453]
[1756966776117,0.79517102,847.85,847.11,0.79231453]
[1756966779218,0.79530201,847.87,847.09,0.79234144]
[1756966779414,0.79530201,847.86,847.08,0.79234144]
[1756966781420,0.20530307,847.67,847.08,0.79234144]
[1756966783313,0.20530307,847.67,847.11,0.79234144]
[1756966789122,0.20530307,847.67,847.16,0.79234144]
[1756966792124,0.20530307,847.67,847.17,0.79234144]
[1756966792626,0.20530307,847.67,847.16,0.79234144]
[1756966796130,0.20530307,847.67,847.14,0.79234144]
[1756966796330,0.20530307,847.67,847.16,0.79234144]
[1756966798831,0.20530307,847.67,847.07,0.79234144]
[1756966799131,0.20530307,847.67,847.1,0.79234144]
[1756966799334,0.20530307,847.67,847.13,0.79234144]
[1756966799532,0.20530307,847.67,847.2,0.79234144]
[1756966799733,0.20530307,847.67,847.21,0.79234144]
[1756966800130,0.20530307,847.67,847.25,0.79234144]
[1756966800532,0.20530307,847.67,847.24,0.79234144]